bitfinex/quotes_BTCUSD_20240602
["timestamp","ask_amount","ask_price","bid_price","bid_amount"]
[1717338238974,0.23818895,68271.0,68269.0,0.001]
[1717338239172,0.23818895,68271.0,68263.0,0.146492]
[1717338239377,0.23818895,68271.0,68269.0,0.002]
[1717338239678,0.23918895,68271.0,68269.0,0.002]
[1717338240078,0.23918895,68271.0,68263.0,0.29226991]
[1717338240280,0.24018895,68271.0,68269.0,0.001]
[1717338240904,0.23818895,68271.0,68261.0,0.146496]
[1717338241563,0.23818895,68271.0,68263.0,0.022]
[1717338241960,0.23818895,68271.0,68261.0,0.146496]
[1717338242163,0.07288895,68264.0,68250.0,0.02932]
[1717338242370,0.07288895,68264.0,68251.0,0.14577791]
[1717338242609,0.07288895,68264.0,68263.0,0.006]
[1717338242836,0.07288895,68264.0,68261.0,0.029]
[1717338243264,0.07288895,68264.0,68261.0,0.042]
[1717338243432,0.07288895,68264.0,68252.0,0.146515]
[1717338244393,0.07388895,68264.0,68252.0,0.146515]
[1717338245546,0.21937895,68264.0,68252.0,0.172515]
[1717338245954,0.22137895,68264.0,68252.0,0.202515]
[1717338246155,0.22137895,68264.0,68252.0,0.172515]
[1717338246499,0.21937895,68264.0,68252.0,0.146515]
[1717338246709,0.22037895,68264.0,68252.0,0.162515]
[1717338247241,0.18650151,68263.0,68252.0,0.016]
[1717338247443,0.18650151,68263.0,68251.0,0.14577791]
[1717338247656,0.18650151,68263.0,68228.0,0.16841205]
[1717338247657,0.2516,68243.0,68228.0,0.16841205]
[1717338247938,0.2516,68243.0,68219.0,0.1]
[1717338247939,0.146548,68237.0,68229.0,0.15207047]
[1717338248133,0.146548,68237.0,68219.0,0.146584]
[1717338248134,0.21944295,68234.0,68219.0,0.146584]
[1717338248336,0.146554,68234.0,68220.0,0.29788803]
[1717338248545,0.18696657,68233.0,68220.0,0.14577791]
[1717338248749,0.04040957,68232.0,68220.0,0.14577791]
[1717338249210,0.146557,68233.0,68220.0,0.14577791]
[1717338249426,0.146561,68231.0,68213.0,0.01468019]
[1717338249640,0.146561,68231.0,68220.0,0.032]
[1717338249846,0.01,68237.0,68220.0,0.019]
[1717338249847,0.146565,68229.0,68220.0,0.019]
[1717338250048,0.3397,68230.0,68220.0,0.019]
[1717338250049,0.146568,68228.0,68220.0,0.019]
[1717338250189,0.146568,68228.0,68220.0,0.025]
[1717338250377,0.146568,68228.0,68220.0,0.019]
[1717338251080,0.146568,68228.0,68214.0,0.14577791]
[1717338251283,0.146568,68228.0,68220.0,0.02]
[1717338251859,0.146568,68228.0,68214.0,0.14577791]
[1717338252239,0.146568,68228.0,68220.0,0.003]
[1717338252470,0.156568,68228.0,68220.0,0.004]
[1717338252642,0.156568,68228.0,68220.0,0.001]
[1717338253055,0.146574,68225.0,68220.0,0.001]
[1717338253257,0.01,68228.0,68220.0,0.001]
[1717338254865,0.01,68228.0,68220.0,0.004]
[1717338255695,0.01,68228.0,68214.0,0.146595]
[1717338255899,0.01,68228.0,68212.0,0.01]
[1717338255900,0.3397,68230.0,68212.0,0.01]
[1717338256111,0.3397,68230.0,68220.0,0.001]
[1717338256112,0.01,68225.0,68220.0,0.001]
[1717338256559,0.01,68225.0,68215.0,0.146594]
[1717338256891,0.01,68225.0,68220.0,0.001]
[1717338257061,0.018,68228.0,68220.0,0.001]
[1717338257407,0.015,68225.0,68220.0,0.002]
[1717338257609,0.486263,68230.0,68215.0,0.146594]
[1717338257824,0.07288895,68216.0,68202.0,0.01764742]
[1717338258041,0.1229,68219.0,68195.0,0.18148019]
[1717338258258,0.2397,68217.0,68199.0,0.146628]
[1717338258475,0.2397,68217.0,68214.0,0.013]
[1717338258476,0.146595,68216.0,68214.0,0.013]
[1717338258884,0.146595,68216.0,68203.0,0.14662]
[1717338259513,0.2397,68217.0,68200.0,0.14577791]
[1717338259718,0.01,68230.0,68200.0,0.14577791]
[1717338259719,0.04368512,68246.0,68221.0,0.54]
[1717338259927,0.13105536,68258.0,68221.0,0.54]
[1717338259928,0.72881805,68263.0,68261.0,0.1]
[1717338260118,0.68513293,68263.0,68257.0,0.1]
[1717338260477,0.68513293,68263.0,68258.0,0.023]
[1717338260701,0.1229,68259.0,68244.0,0.04400019]
[1717338261131,0.015,68246.0,68245.0,0.14577791]
[1717338261819,0.015,68246.0,68229.0,0.1568]
[1717338262033,0.015,68246.0,68230.0,0.17509791]
[1717338262229,0.015,68246.0,68232.0,0.02932]
[1717338262453,0.015,68246.0,68231.0,0.023]
[1717338262454,0.015,68246.0,68234.0,0.02932]
[1717338262754,0.015,68246.0,68245.0,0.037]
[1717338263037,0.07288895,68253.0,68245.0,0.037]
[1717338263804,0.07288895,68253.0,68245.0,0.068]
[1717338263805,0.001,68246.0,68245.0,0.068]
[1717338264247,0.07288895,68253.0,68245.0,0.037]
[1717338264443,0.07288895,68253.0,68236.0,0.02932]
[1717338264690,0.07388895,68253.0,68245.0,0.031]
[1717338264891,0.07388895,68253.0,68238.0,0.02932]
[1717338265105,0.07388895,68253.0,68240.0,0.02932]
[1717338265315,0.07388895,68253.0,68240.0,0.17509791]
[1717338265514,0.07388895,68253.0,68245.0,0.037]
[1717338266104,0.07388895,68253.0,68240.0,0.17509791]
[1717338266312,0.07388895,68253.0,68245.0,0.031]
[1717338266313,0.001,68246.0,68245.0,0.031]
[1717338266668,0.07288895,68253.0,68240.0,0.21209791]
[1717338266909,0.07388895,68253.0,68245.0,0.031]
[1717338267328,0.01,68252.0,68240.0,0.21209791]
[1717338267538,0.07288895,68246.0,68245.0,0.031]
[1717338267705,0.07388895,68246.0,68245.0,0.031]
[1717338267910,0.07388895,68246.0,68231.0,0.02932]
[1717338268113,0.07388895,68246.0,68230.0,0.146562]
[1717338268114,0.07388895,68246.0,68245.0,0.037]
[1717338268320,0.001,68246.0,68245.0,0.068]
[1717338268576,0.001,68246.0,68245.0,0.031]
[1717338268898,0.001,68246.0,68245.0,0.068]
[1717338269561,0.1,68249.0,68245.0,0.068]
[1717338269815,0.07288895,68246.0,68233.0,0.02932]
[1717338270008,0.07288895,68246.0,68229.0,0.303364]
[1717338270009,0.2342,68245.0,68234.0,0.02932]
[1717338270212,0.07288895,68239.0,68228.0,0.01468019]
[1717338270389,0.1,68244.0,68228.0,0.14577791]
[1717338270595,0.07288895,68239.0,68227.0,0.02932]
[1717338271203,0.07288895,68239.0,68234.0,0.037]
[1717338271501,0.01,68242.0,68234.0,0.037]
[1717338271904,0.01,68241.0,68234.0,0.037]
[1717338272593,0.01,68242.0,68234.0,0.074]
[1717338272746,0.11,68242.0,68234.0,0.074]
[1717338273102,0.001,68239.0,68234.0,0.037]
[1717338273247,0.001,68239.0,68227.0,0.06632]
[1717338273248,0.001,68239.0,68227.0,0.175888]
[1717338273433,0.001,68239.0,68234.0,0.037]
[1717338273864,0.003,68241.0,68234.0,0.037]
[1717338274755,0.102,68242.0,68234.0,0.037]
[1717338275125,0.105,68242.0,68234.0,0.074]
[1717338275375,0.03105354,68241.0,68234.0,0.074]
[1717338275618,0.03105354,68241.0,68234.0,0.037]
[1717338275771,0.102,68242.0,68234.0,0.037]
[1717338276453,0.03107612,68241.0,68228.0,0.146567]
[1717338276654,0.03507612,68241.0,68234.0,0.071]
[1717338276828,0.004,68241.0,68234.0,0.071]
[1717338277032,0.004,68241.0,68234.0,0.034]
[1717338277033,0.003,68241.0,68234.0,0.034]
[1717338277235,0.03102682,68240.0,68234.0,0.071]
[1717338277613,0.03102682,68240.0,68234.0,0.034]
[1717338277826,0.03102682,68240.0,68234.0,0.037]
[1717338278411,0.03102682,68239.0,68234.0,0.037]
[1717338278618,0.03102682,68238.0,68229.0,0.146565]
[1717338278797,0.246538,68242.0,68229.0,0.146565]
[1717338278990,0.003,68240.0,68234.0,0.037]
[1717338279212,0.03086983,68239.0,68234.0,0.037]
[1717338279615,0.17741283,68239.0,68234.0,0.074]
[1717338279744,0.13086983,68238.0,68234.0,0.074]
[1717338279961,0.1,68238.0,68234.0,0.037]
[1717338280454,0.1,68238.0,68226.0,0.17589]
[1717338280629,0.1,68238.0,68227.0,0.18142604]
[1717338280839,0.09909703,68238.0,68234.0,0.037]
[1717338281077,0.09909703,68238.0,68227.0,0.02932]
[1717338281262,0.03083875,68237.0,68228.0,0.15210674]
[1717338281475,0.03083875,68237.0,68234.0,0.037]
[1717338283144,0.001,68239.0,68234.0,0.037]
[1717338283145,0.001,68239.0,68238.0,0.293091]
[1717338283341,0.10907057,68264.0,68238.0,0.293091]
[1717338283342,0.04362823,68266.0,68258.0,0.146502]
[1717338283547,0.03130094,68265.0,68259.0,0.29227791]
[1717338283750,0.00858,68272.0,68259.0,0.14577791]
[1717338283953,0.00858,68272.0,68263.0,0.146491]
[1717338284149,0.00858,68272.0,68258.0,0.10792]
[1717338284150,0.00858,68272.0,68264.0,0.29226691]
[1717338284325,0.00858,68272.0,68265.0,0.146486]
[1717338284559,0.00858,68272.0,68265.0,0.29226391]
[1717338284751,0.00858,68272.0,68266.0,0.1520273]
[1717338284956,0.00858,68272.0,68267.0,0.1520273]
[1717338285072,0.00858,68272.0,68268.0,0.1520273]
[1717338285276,0.00858,68272.0,68265.0,0.29226391]
[1717338285521,0.00858,68272.0,68266.0,0.15202701]
[1717338285869,0.00858,68272.0,68267.0,0.15202701]
[1717338286072,0.00858,68272.0,68265.0,0.29926391]
[1717338286290,0.00858,68272.0,68266.0,0.15202695]
[1717338286496,0.00858,68272.0,68265.0,0.29226391]
[1717338286697,0.00858,68272.0,68266.0,0.15202652]
[1717338286923,0.00858,68272.0,68265.0,0.29226391]
[1717338287444,0.00858,68272.0,68266.0,0.146485]
[1717338287783,0.00858,68272.0,68266.0,0.150485]
[1717338288397,0.00858,68272.0,68267.0,0.146482]
[1717338290076,0.00858,68272.0,68266.0,0.004]
[1717338290571,0.00858,68272.0,68265.0,0.14577791]
[1717338291307,0.07288895,68271.0,68266.0,0.004]
[1717338291917,0.07288895,68271.0,68258.0,0.10792]
[1717338292124,0.00858,68272.0,68265.0,0.007]
[1717338292333,0.00858,68272.0,68266.0,0.146484]
[1717338292760,0.00858,68272.0,68259.0,0.14577791]
[1717338292874,0.00858,68272.0,68266.0,0.004]
[1717338294366,0.00858,68272.0,68262.0,0.146494]
[1717338294574,0.00858,68272.0,68266.0,0.003]
[1717338294780,0.00858,68272.0,68266.0,0.007]
[1717338295198,0.00858,68272.0,68266.0,0.003]
[1717338297390,0.08638,68272.0,68266.0,0.007]
[1717338300550,0.00858,68272.0,68266.0,0.007]
[1717338301304,0.00858,68272.0,68267.0,0.146482]
[1717338301837,0.00858,68272.0,68266.0,0.007]
[1717338302172,0.00858,68272.0,68266.0,0.003]
[1717338302379,0.00858,68272.0,68267.0,0.001]
[1717338303836,0.00858,68272.0,68264.0,0.146489]
[1717338304139,0.00858,68272.0,68266.0,0.004]
[1717338304688,0.00858,68272.0,68264.0,0.146489]
[1717338305049,0.00858,68272.0,68267.0,0.001]
[1717338305453,0.00858,68272.0,68266.0,0.003]
[1717338306357,0.00858,68272.0,68266.0,0.007]
[1717338307540,0.00858,68272.0,68266.0,0.004]
[1717338307970,0.00858,68272.0,68266.0,0.007]
[1717338309212,0.00858,68272.0,68267.0,0.15202935]
[1717338309417,0.00858,68272.0,68266.0,0.007]
[1717338309593,0.00858,68272.0,68267.0,0.15203013]
[1717338309836,0.00858,68272.0,68266.0,0.007]
[1717338309981,0.00858,68272.0,68267.0,0.15203022]
[1717338310200,0.00858,68272.0,68268.0,0.15203022]
[1717338310403,0.00858,68272.0,68266.0,0.004]
[1717338310557,0.00858,68272.0,68267.0,0.1520302]
[1717338310770,0.00858,68272.0,68268.0,0.1520302]
[1717338311141,0.00858,68272.0,68267.0,0.001]
[1717338311268,0.00858,68272.0,68268.0,0.15203007]
[1717338311467,0.00858,68272.0,68269.0,0.15203007]
[1717338311716,0.00858,68272.0,68270.0,0.15203035]
[1717338311884,0.00858,68272.0,68266.0,0.003]
[1717338312093,0.00858,68272.0,68267.0,0.15202185]
[1717338312302,0.00858,68272.0,68268.0,0.15202185]
[1717338312529,0.00858,68272.0,68269.0,0.15202185]
[1717338312695,0.00858,68272.0,68266.0,0.003]
[1717338312696,0.00858,68272.0,68270.0,0.15202185]
[1717338312897,0.00858,68272.0,68271.0,0.15202185]
[1717338313524,0.1001655,68279.0,68271.0,0.15202185]
[1717338313525,0.058636,68293.0,68284.0,0.1]
[1717338313720,0.02,68305.0,68285.0,0.29779976]
[1717338313721,0.146417,68298.0,68285.0,0.29779976]
[1717338313973,0.146417,68298.0,68286.0,0.15202185]
[1717338314284,0.146417,68298.0,68287.0,0.29779976]
[1717338314485,0.146417,68298.0,68288.0,0.15202185]
[1717338314685,0.146417,68298.0,68289.0,0.15202185]
[1717338314797,0.146417,68298.0,68290.0,0.15202185]
[1717338314998,0.12288989,68302.0,68291.0,0.29779976]
[1717338314999,0.14659789,68302.0,68291.0,0.29779976]
[1717338315245,0.14659789,68302.0,68292.0,0.15202185]
[1717338315455,0.1,68295.0,68293.0,0.15202185]
[1717338315612,0.1,68295.0,68294.0,0.15202185]
[1717338317472,0.1,68295.0,68294.0,0.15302185]
[1717338318596,0.1,68295.0,68294.0,0.15402185]
[1717338318799,0.1,68295.0,68294.0,0.002]
[1717338318800,0.246423,68295.0,68294.0,0.002]
[1717338320023,0.580001,68295.0,68294.0,0.002]
[1717338320233,0.64610091,68295.0,68294.0,0.002]
[1717338321121,0.67738319,68295.0,68294.0,0.001]
[1717338321339,0.01,68289.0,68277.0,0.43733372]
[1717338321551,0.52096019,68295.0,68269.0,0.4691]
[1717338321552,0.390362,68277.0,68269.0,0.4691]
[1717338321755,0.390362,68277.0,68270.0,0.1520172]
[1717338321957,0.390362,68277.0,68271.0,0.1520172]
[1717338322234,0.390362,68277.0,68272.0,0.1520172]
[1717338322671,0.390362,68277.0,68264.0,0.02931]
[1717338322880,0.390362,68277.0,68265.0,0.15202688]
[1717338323085,0.390362,68277.0,68266.0,0.15202688]
[1717338323292,0.390362,68277.0,68267.0,0.15202688]
[1717338323493,0.390362,68277.0,68268.0,0.15202688]
[1717338323694,0.390362,68277.0,68269.0,0.18902688]
[1717338323695,0.2469,68277.0,68269.0,0.18902688]
[1717338323980,0.2439,68277.0,68270.0,0.15202688]
[1717338324171,0.2469,68277.0,68271.0,0.15202688]
[1717338324403,0.2469,68277.0,68270.0,0.032]
[1717338324404,0.2469,68277.0,68272.0,0.15202688]
[1717338324627,0.2469,68277.0,68265.0,0.146487]
[1717338324628,0.2439,68277.0,68265.0,0.146487]
[1717338324894,0.2469,68277.0,68269.0,0.028]
[1717338325120,0.2469,68277.0,68270.0,0.15202574]
[1717338325337,0.2469,68277.0,68271.0,0.15202574]
[1717338325558,0.2439,68277.0,68272.0,0.15202574]
[1717338325769,0.2459,68277.0,68272.0,0.17002574]
[1717338325994,0.2459,68277.0,68272.0,0.018]
[1717338326444,0.2469,68277.0,68272.0,0.018]
[1717338326685,0.2469,68277.0,68273.0,0.15202135]
[1717338326903,0.2469,68277.0,68272.0,0.018]
[1717338327130,0.7429,68277.0,68267.0,0.146483]
[1717338327357,0.7429,68277.0,68268.0,0.15202499]
[1717338327545,0.7459,68277.0,68272.0,0.011]
[1717338327689,0.7449,68277.0,68271.0,0.021]
[1717338327922,0.7429,68277.0,68272.0,0.152026]
[1717338328147,0.7429,68277.0,68273.0,0.152026]
[1717338328350,0.7429,68277.0,68267.0,0.032]
[1717338328351,0.7459,68277.0,68267.0,0.032]
[1717338328552,0.7459,68277.0,68268.0,0.15202315]
[1717338328751,0.7429,68277.0,68269.0,0.15202315]
[1717338329287,0.7429,68277.0,68272.0,0.015]
[1717338329288,0.7439,68277.0,68272.0,0.015]
[1717338329967,0.7449,68277.0,68272.0,0.015]
[1717338330170,0.7439,68277.0,68272.0,0.015]
[1717338330379,0.7439,68277.0,68266.0,0.146485]
[1717338330611,0.7429,68277.0,68272.0,0.007]
[1717338330827,0.7449,68277.0,68272.0,0.007]
[1717338331257,0.7449,68277.0,68269.0,0.021]
[1717338331517,0.7449,68277.0,68270.0,0.15202219]
[1717338331698,0.7459,68277.0,68271.0,0.15202219]
[1717338331924,0.7439,68277.0,68272.0,0.15202219]
[1717338332145,0.7459,68277.0,68271.0,0.00254239]
[1717338332364,0.7459,68277.0,68273.0,0.00254178]
[1717338332580,0.7459,68277.0,68267.0,0.146482]
[1717338332799,0.7459,68277.0,68268.0,0.15202175]
[1717338333039,0.7449,68277.0,68269.0,0.15202175]
[1717338333264,0.7449,68277.0,68272.0,0.007]
[1717338333725,0.7429,68277.0,68261.0,0.02931]
[1717338333951,0.7449,68277.0,68271.0,0.015]
[1717338334539,0.7439,68277.0,68272.0,0.007]
[1717338334741,0.7439,68277.0,68272.0,0.011]
[1717338335356,0.7429,68277.0,68263.0,0.02931]
[1717338335573,0.7429,68277.0,68269.0,0.146478]
[1717338335991,0.7429,68277.0,68270.0,0.15456279]
[1717338336199,0.499,68277.0,68271.0,0.1520201]
[1717338336404,0.499,68277.0,68272.0,0.15201807]
[1717338336578,0.499,68277.0,68273.0,0.31261807]
[1717338336749,0.499,68277.0,68274.0,0.15201807]
[1717338336750,0.501,68277.0,68274.0,0.15201807]
[1717338336952,0.501,68277.0,68274.0,0.00254147]
[1717338337196,0.5,68277.0,68274.0,0.00254147]
[1717338337436,0.5,68277.0,68274.0,0.14900847]
[1717338337659,0.499,68277.0,68274.0,0.14900847]
[1717338338087,0.5,68277.0,68274.0,0.14900847]
[1717338338686,0.499,68277.0,68274.0,0.14900847]
[1717338340089,0.499,68277.0,68274.0,0.15300847]
[1717338340294,0.499,68277.0,68275.0,0.15201217]
[1717338340490,0.499,68277.0,68274.0,0.15300847]
[1717338340694,0.499,68277.0,68275.0,0.154552]
[1717338340977,0.499,68277.0,68275.0,0.00253984]
[1717338341555,0.499,68277.0,68275.0,0.00353984]
[1717338343206,0.502,68277.0,68275.0,0.00353984]
[1717338343903,0.502,68277.0,68275.0,0.001]
[1717338347264,0.502,68277.0,68276.0,0.15201649]
[1717338347583,0.602,68277.0,68276.0,0.15454936]
[1717338348944,0.59823,68277.0,68276.0,0.15454936]
[1717338349563,0.72293,68277.0,68276.0,0.15454936]
[1717338349913,0.71993,68277.0,68276.0,0.15454936]
[1717338350960,0.72593,68277.0,68276.0,0.15454936]
[1717338353055,0.95703,68277.0,68276.0,0.15454936]
[1717338353513,0.95703,68277.0,68276.0,0.15201649]
[1717338353752,0.95703,68277.0,68268.0,0.146479]
[1717338353978,0.1,68276.0,68269.0,0.15202817]
[1717338354222,0.1,68276.0,68270.0,0.15202817]
[1717338354449,0.1,68276.0,68271.0,0.15202817]
[1717338354683,0.1,68276.0,68272.0,0.15202817]
[1717338354920,0.1,68276.0,68271.0,0.00253891]
[1717338354921,0.1,68276.0,68273.0,0.15202817]
[1717338355193,0.1,68276.0,68274.0,0.15202817]
[1717338355367,0.17288895,68276.0,68275.0,0.15202817]
[1717338356232,0.17288895,68276.0,68275.0,0.15202483]
[1717338356954,0.17588895,68276.0,68275.0,0.15202483]
[1717338357610,0.17588895,68276.0,68275.0,0.15302483]
[1717338357611,0.26358895,68276.0,68275.0,0.15302483]
[1717338358069,0.21098895,68276.0,68275.0,0.15302483]
[1717338361013,0.103,68276.0,68275.0,0.15302483]
[1717338361171,0.003,68276.0,68275.0,0.15302483]
[1717338361566,0.0381,68276.0,68275.0,0.15302483]
[1717338363434,0.003,68276.0,68275.0,0.15302483]
[1717338363748,0.0381,68276.0,68275.0,0.15302483]
[1717338366453,0.003,68276.0,68275.0,0.15302483]
[1717338366607,0.0381,68276.0,68275.0,0.15302483]
[1717338368877,0.0381,68276.0,68275.0,0.15556358]
[1717338369096,0.003,68276.0,68275.0,0.15556358]
[1717338369399,0.0381,68276.0,68275.0,0.15556358]
[1717338370595,0.003,68276.0,68275.0,0.15556358]
[1717338377395,0.003,68276.0,68275.0,0.15302483]
[1717338378653,0.0381,68276.0,68275.0,0.15302483]
[1717338378972,0.0381,68276.0,68275.0,0.15556006]
[1717338381881,0.0381,68276.0,68275.0,0.15536006]
[1717338384732,0.0381,68276.0,68275.0,0.00353523]
[1717338384910,0.0381,68276.0,68275.0,0.001]
[1717338385925,0.003,68276.0,68275.0,0.001]
[1717338386139,0.0381,68276.0,68275.0,0.001]
[1717338388117,0.184564,68276.0,68275.0,0.001]
[1717338388322,0.149464,68276.0,68275.0,0.001]
[1717338388542,0.184564,68276.0,68275.0,0.001]
[1717338392007,0.184564,68276.0,68275.0,0.15302681]
[1717338393065,0.149464,68276.0,68275.0,0.15302681]
[1717338393289,0.184564,68276.0,68275.0,0.15302681]
[1717338395249,0.184564,68276.0,68275.0,0.54110472]
[1717338395250,0.003,68276.0,68275.0,0.54110472]
[1717338395679,0.003,68276.0,68275.0,0.54362083]
[1717338398525,0.003,68276.0,68275.0,0.54360585]
[1717338404521,0.003,68276.0,68275.0,0.46290585]
[1717338408267,0.003,68276.0,68275.0,0.30130585]
[1717338416701,0.0381,68276.0,68275.0,0.30130585]
[1717338418229,0.0381,68276.0,68275.0,0.15552794]
[1717338425108,0.003,68276.0,68275.0,0.15552794]
[1717338425330,0.0381,68276.0,68275.0,0.15552794]
[1717338425551,0.0381,68276.0,68275.0,0.15301183]
[1717338425960,0.0381,68276.0,68275.0,0.15552599]
[1717338426985,0.0381,68276.0,68275.0,0.15052599]
[1717338427202,0.0381,68276.0,68275.0,0.14801183]
[1717338428387,0.1912,68276.0,68275.0,0.14801183]
[1717338430186,0.1912,68276.0,68268.0,0.021]
[1717338430386,0.1912,68276.0,68269.0,0.14577791]
[1717338430847,0.0381,68276.0,68270.0,0.00251568]
[1717338431089,0.0381,68276.0,68270.0,0.14829359]
[1717338431504,0.0401,68276.0,68270.0,0.14829359]
[1717338431707,0.0371,68276.0,68270.0,0.14829359]
[1717338431906,0.13749334,68277.0,68275.0,0.07288895]
[1717338432157,0.29392863,68290.0,68289.0,0.1]
[1717338432348,0.25,68290.0,68289.0,0.74437791]
[1717338432589,0.25,68290.0,68289.0,0.7468905]
[1717338432590,0.35,68290.0,68289.0,0.7468905]
[1717338433581,0.351,68290.0,68289.0,0.7608905]
[1717338434823,0.35,68290.0,68289.0,0.7588905]
[1717338435261,0.351,68290.0,68289.0,0.7728905]
[1717338435640,0.351,68290.0,68289.0,0.1742905]
[1717338436256,0.3861,68290.0,68289.0,0.1742905]
[1717338437129,0.3861,68290.0,68289.0,0.32627595]
[1717338439375,0.351,68290.0,68289.0,0.32627595]
[1717338439619,0.251,68290.0,68289.0,0.33627595]
[1717338439862,0.251,68290.0,68289.0,1.12381195]
[1717338440103,0.251,68290.0,68289.0,1.19978776]
[1717338440340,0.251,68290.0,68289.0,1.42776613]
[1717338440579,0.251,68290.0,68289.0,1.52776613]
[1717338441043,0.251,68290.0,68289.0,1.82063813]
[1717338441273,0.251,68290.0,68289.0,1.80863813]
[1717338441532,0.251,68290.0,68289.0,1.87804016]
[1717338441996,0.25,68290.0,68289.0,1.972961]
[1717338442241,0.25,68290.0,68289.0,1.997961]
[1717338442461,0.25,68290.0,68289.0,1.95442376]
[1717338442462,0.251,68290.0,68289.0,1.95442376]
[1717338442700,0.251,68290.0,68289.0,1.90702173]
[1717338442963,0.251,68290.0,68289.0,1.95442376]
[1717338443208,0.251,68290.0,68289.0,1.90702173]
[1717338443447,0.251,68290.0,68289.0,1.95055897]
[1717338443670,0.251,68290.0,68289.0,1.80702173]
[1717338444378,0.251,68290.0,68289.0,1.74163813]
[1717338444609,0.251,68290.0,68289.0,1.84163813]
[1717338445377,0.251,68290.0,68289.0,2.13451013]
[1717338446164,0.251,68290.0,68289.0,2.16382013]
[1717338446637,0.251,68290.0,68289.0,2.61123603]
[1717338447144,0.251,68290.0,68289.0,2.54569879]
[1717338447371,0.251,68290.0,68289.0,2.27882013]
[1717338447605,0.251,68290.0,68289.0,2.64806299]
[1717338448322,0.251,68290.0,68289.0,2.58606299]
[1717338448579,0.25,68290.0,68289.0,2.58605909]
[1717338448781,0.25,68290.0,68289.0,2.66105909]
[1717338449506,0.25,68290.0,68289.0,2.35720373]
[1717338449964,0.25,68290.0,68289.0,2.38380214]
[1717338451444,0.25,68290.0,68289.0,2.31841854]
[1717338453308,0.25,68290.0,68289.0,2.61129054]
[1717338453518,0.41765695,68296.0,68295.0,0.35]
[1717338453735,0.41765695,68296.0,68295.0,3.23280377]
[1717338453736,0.36352695,68296.0,68295.0,3.23280377]
[1717338453948,0.34582695,68296.0,68295.0,3.37948947]
[1717338454368,0.34582695,68296.0,68295.0,3.34438947]
[1717338454575,0.34582695,68296.0,68295.0,3.37948947]
[1717338455228,0.33514189,68296.0,68295.0,3.41648947]
[1717338455655,0.33514189,68296.0,68295.0,3.46388134]
[1717338455865,0.33514189,68296.0,68295.0,3.45348947]
[1717338456297,0.30714189,68296.0,68295.0,3.45348947]
[1717338456523,0.30714189,68296.0,68295.0,3.48126061]
[1717338456726,0.30714189,68296.0,68295.0,3.11869721]
[1717338456934,0.30586472,68296.0,68295.0,3.08841361]
[1717338457139,0.30586472,68296.0,68295.0,2.78458157]
[1717338457604,0.30586472,68296.0,68295.0,2.74948157]
[1717338457819,0.30586472,68296.0,68295.0,2.78458157]
[1717338458029,0.30586472,68296.0,68295.0,2.74948157]
[1717338458463,0.18927643,68296.0,68295.0,2.74948157]
[1717338458683,0.18927643,68296.0,68295.0,2.84948157]
[1717338458950,0.18927643,68296.0,68295.0,2.83463326]
[1717338460084,0.18927643,68296.0,68295.0,3.13846335]
[1717338462423,0.17156094,68296.0,68295.0,3.13846335]
[1717338462813,0.15556094,68296.0,68295.0,3.13846335]
[1717338463057,0.15364109,68296.0,68295.0,3.13846335]
[1717338463679,0.15364109,68296.0,68295.0,3.02746335]
[1717338463882,0.15364109,68296.0,68295.0,3.06446335]
[1717338464090,0.15364109,68296.0,68295.0,3.10146335]
[1717338464535,0.15364109,68296.0,68295.0,3.06446335]
[1717338464969,0.15364109,68296.0,68295.0,3.10146335]
[1717338465786,0.13764109,68296.0,68295.0,3.45950881]
[1717338466342,0.13764109,68296.0,68295.0,3.51810081]
[1717338466758,0.13764109,68296.0,68295.0,3.81094781]
[1717338467161,0.10864109,68296.0,68295.0,3.81094781]
[1717338467929,0.07964109,68296.0,68295.0,3.81094781]
[1717338468163,0.03437109,68296.0,68295.0,4.16094781]
[1717338469212,0.01937109,68296.0,68295.0,4.16094781]
[1717338469428,0.00018989,68302.0,68301.0,1.213762]
[1717338469643,0.01699789,68305.0,68301.0,2.7987427]
[1717338469869,0.01699789,68305.0,68304.0,1.89950791]
[1717338470079,0.01699789,68305.0,68304.0,2.75910951]
[1717338470325,0.01699789,68305.0,68304.0,3.07725581]
[1717338470526,0.01699789,68305.0,68304.0,3.15615581]
[1717338470948,0.01699789,68305.0,68304.0,3.45999237]
[1717338472923,0.01699789,68305.0,68304.0,3.49599237]
[1717338473121,0.01699789,68305.0,68304.0,3.69259237]
[1717338473321,0.05853,68315.0,68313.0,1.050885]
[1717338473528,0.05853,68315.0,68313.0,2.33356451]
[1717338473732,0.05853,68315.0,68313.0,2.63971522]
[1717338474570,0.05853,68315.0,68313.0,3.38685522]
[1717338475355,0.05853,68315.0,68313.0,4.05893522]
[1717338475976,0.05853,68315.0,68313.0,4.15124592]
[1717338476199,0.05853,68315.0,68314.0,2.54062039]
[1717338476200,0.03053,68315.0,68314.0,2.54062039]
[1717338476471,0.01353,68315.0,68314.0,2.54292995]
[1717338476708,0.01353,68315.0,68314.0,2.66238263]
[1717338476921,0.01353,68315.0,68314.0,2.36961763]
[1717338477125,0.01353,68315.0,68314.0,2.06578107]
[1717338477302,0.01353,68315.0,68314.0,2.07578107]
[1717338477528,0.01353,68315.0,68314.0,2.06578107]
[1717338477827,0.01353,68315.0,68314.0,2.10278107]
[1717338478043,0.01353,68315.0,68314.0,2.14978107]
[1717338478640,0.01353,68315.0,68314.0,2.17278107]
[1717338479165,0.01353,68315.0,68314.0,2.46554607]
[1717338479371,0.01353,68315.0,68314.0,2.42854607]
[1717338479536,0.01353,68315.0,68314.0,2.13578107]
[1717338480148,0.01353,68315.0,68314.0,2.17278107]